bitfinex/quotes_BTCUSD_20250316
["timestamp","ask_amount","ask_price","bid_price","bid_amount"]
[1742142656133,0.236535,84554.0,84549.0,0.250374]
[1742142656567,0.236535,84554.0,84549.0,0.248374]
[1742142656761,0.236535,84554.0,84552.0,0.002]
[1742142656971,0.0001694,84559.0,84556.0,0.236529]
[1742142657169,0.0001694,84559.0,84558.0,0.011826]
[1742142658249,0.00012424,84559.0,84556.0,0.248355]
[1742142658436,0.00012424,84559.0,84558.0,0.24835]
[1742142658615,0.011826,84554.0,84543.0,0.075]
[1742142658827,0.00012424,84559.0,84543.0,0.075]
[1742142658828,0.011826,84556.0,84550.0,0.011827]
[1742142659117,0.236534,84555.0,84552.0,0.003]
[1742142659317,0.236537,84554.0,84549.0,0.248374]
[1742142659536,0.011826,84558.0,84551.0,0.236543]
[1742142659951,0.248352,84558.0,84553.0,0.248362]
[1742142660404,0.25506474,84557.0,84551.0,0.011827]
[1742142660724,0.25506474,84557.0,84556.0,0.248355]
[1742142660725,0.01853874,84557.0,84556.0,0.248355]
[1742142661140,0.01853874,84557.0,84556.0,0.330455]
[1742142661343,0.01853874,84557.0,84556.0,0.248355]
[1742142662718,0.01853874,84557.0,84556.0,0.251355]
[1742142663117,0.01853874,84557.0,84556.0,0.248355]
[1742142663321,0.01853874,84557.0,84556.0,0.251355]
[1742142663532,0.01853874,84557.0,84556.0,0.248355]
[1742142663907,0.01853874,84557.0,84556.0,0.253355]
[1742142664320,0.03036474,84557.0,84556.0,0.005]
[1742142664703,0.34218321,84557.0,84556.0,0.005]
[1742142664911,0.548381,84547.0,84546.0,8e-07]
[1742142665171,0.779601,84547.0,84546.0,8e-07]
[1742142665297,1.530761,84547.0,84546.0,8e-07]
[1742142665744,1.5493052,84547.0,84546.0,8e-07]
[1742142665953,1.57302062,84547.0,84546.0,8e-07]
[1742142666150,1.59256147,84547.0,84546.0,8e-07]
[1742142666363,1.68756127,84547.0,84546.0,8e-07]
[1742142666738,1.68256127,84547.0,84546.0,8e-07]
[1742142666952,1.60884605,84547.0,84546.0,8e-07]
[1742142667163,1.5190052,84547.0,84546.0,8e-07]
[1742142667364,1.569005,84547.0,84546.0,8e-07]
[1742142667516,1.5190052,84547.0,84546.0,8e-07]
[1742142668102,1.58947557,84547.0,84546.0,8e-07]
[1742142668859,0.248476,84515.0,84514.0,0.0003386]
[1742142669953,0.011832,84515.0,84514.0,0.0003386]
[1742142670168,0.15592,84516.0,84514.0,0.0003386]
[1742142670400,4.111e-05,84515.0,84514.0,0.0003386]
[1742142670629,0.23668511,84515.0,84514.0,0.0003386]
[1742142670834,0.24851711,84515.0,84514.0,0.0003386]
[1742142671263,0.54851711,84515.0,84514.0,0.0003386]
[1742142672257,0.01187311,84515.0,84514.0,0.0003386]
[1742142673922,0.01187311,84515.0,84514.0,0.0023386]
[1742142673923,0.31187311,84515.0,84514.0,0.0023386]
[1742142674136,0.31187311,84515.0,84514.0,0.0003386]
[1742142674340,0.39275462,84515.0,84514.0,0.0003386]
[1742142675034,0.31187311,84515.0,84514.0,0.0003386]
[1742142675236,0.33042378,84515.0,84514.0,0.0003386]
[1742142675829,0.26706778,84515.0,84514.0,0.0003386]
[1742142676841,0.26906778,84515.0,84514.0,0.0003386]
[1742142677072,0.24851711,84515.0,84514.0,0.0003386]
[1742142678620,0.25051711,84515.0,84514.0,0.0003386]
[1742142679065,0.26505796,84515.0,84514.0,0.0003386]
[1742142679864,0.26305796,84515.0,84514.0,0.0003386]
[1742142680404,0.28260895,84515.0,84514.0,0.0003386]
[1742142680638,0.28160895,84515.0,84514.0,0.0003386]
[1742142680898,0.38015765,84515.0,84514.0,0.0003386]
[1742142681683,0.2690681,84515.0,84514.0,0.0003386]
[1742142681889,0.0205921,84515.0,84514.0,0.0003386]
[1742142682084,0.0324241,84515.0,84514.0,0.0003386]
[1742142682608,0.0205921,84515.0,84514.0,0.0003386]
[1742142682819,0.0324241,84515.0,84514.0,0.0003386]
[1742142683047,0.0304241,84515.0,84514.0,0.0003386]
[1742142683701,0.0185921,84515.0,84514.0,0.2488176]
[1742142683917,0.0185921,84515.0,84514.0,0.27706586]
[1742142684338,0.0185921,84515.0,84514.0,0.2588176]
[1742142684790,0.0185921,84515.0,84514.0,0.2598176]
[1742142684993,0.0185921,84515.0,84514.0,0.2588176]
[1742142686480,0.0185921,84515.0,84514.0,0.0123386]
[1742142686863,0.01187311,84515.0,84514.0,0.0123386]
[1742142687072,4.111e-05,84515.0,84514.0,0.0123386]
[1742142687496,0.24851711,84515.0,84514.0,0.0123386]
[1742142689319,4.111e-05,84515.0,84514.0,0.0103386]
[1742142689679,0.01187311,84515.0,84514.0,0.0123386]
[1742142690097,0.01187311,84515.0,84514.0,0.0103386]
[1742142690442,0.03042161,84515.0,84514.0,0.0103386]
[1742142691060,0.03042161,84515.0,84514.0,0.0113386]
[1742142691061,0.33042161,84515.0,84514.0,0.0113386]
[1742142691460,0.31187311,84515.0,84514.0,0.0113386]
[1742142691888,0.31187311,84515.0,84514.0,6e-07]
[1742142692729,0.011834,84501.0,84500.0,0.0001]
[1742142693415,0.011834,84501.0,84494.0,6e-07]
[1742142693416,0.248535,84495.0,84494.0,6e-07]
[1742142693767,0.65866171,84495.0,84494.0,6e-07]
[1742142693967,0.74977991,84495.0,84494.0,6e-07]
[1742142694172,0.011835,84492.0,84491.0,2e-07]
[1742142694388,0.56808385,84492.0,84491.0,2e-07]
[1742142694592,0.011837,84477.0,84471.0,0.0008]
[1742142694801,0.548602,84472.0,84471.0,9.5e-07]
[1742142694996,0.56814285,84472.0,84471.0,9.5e-07]
[1742142695296,0.60278053,84472.0,84471.0,9.5e-07]
[1742142695507,0.56814285,84472.0,84471.0,9.5e-07]
[1742142695708,0.58670398,84472.0,84471.0,9.5e-07]
[1742142695976,0.58670398,84472.0,84471.0,0.00041314]
[1742142696396,0.56316685,84464.0,84463.0,6e-07]
[1742142696615,0.56316685,84464.0,84461.0,9.8e-07]
[1742142696616,0.005,84462.0,84461.0,9.8e-07]
[1742142696825,0.56317185,84462.0,84461.0,0.00012463]
[1742142697333,0.56317185,84462.0,84461.0,6.3e-07]
[1742142697549,0.61317165,84462.0,84461.0,6.3e-07]
[1742142697751,0.73274668,84462.0,84461.0,6.3e-07]
[1742142697928,0.61517165,84462.0,84461.0,6.3e-07]
[1742142698160,0.56517185,84462.0,84461.0,6.3e-07]
[1742142698396,0.550631,84462.0,84461.0,6.3e-07]
[1742142698601,0.706391,84462.0,84461.0,6.3e-07]
[1742142699219,0.704391,84462.0,84461.0,6.3e-07]
[1742142699375,0.82396603,84462.0,84461.0,6.3e-07]
[1742142699575,0.82796603,84462.0,84461.0,6.3e-07]
[1742142699781,0.72293185,84462.0,84461.0,6.3e-07]
[1742142699960,0.7374961,84462.0,84461.0,6.3e-07]
[1742142700478,0.7404961,84462.0,84461.0,6.3e-07]
[1742142700684,0.7454961,84462.0,84461.0,6.3e-07]
[1742142701034,0.72693185,84462.0,84461.0,6.3e-07]
[1742142701235,0.56617185,84462.0,84461.0,6.3e-07]
[1742142701388,0.707391,84462.0,84461.0,6.3e-07]
[1742142701801,0.72393185,84462.0,84461.0,6.3e-07]
[1742142702809,0.71893185,84462.0,84461.0,6.3e-07]
[1742142703697,0.553631,84462.0,84461.0,6.3e-07]
[1742142703899,0.409391,84462.0,84461.0,6.3e-07]
[1742142704108,0.704391,84462.0,84461.0,6.3e-07]
[1742142704259,0.408391,84462.0,84461.0,6.3e-07]
[1742142704468,0.708391,84462.0,84461.0,6.3e-07]
[1742142704673,0.704391,84462.0,84461.0,6.3e-07]
[1742142705060,0.707391,84462.0,84461.0,6.3e-07]
[1742142705262,0.72595455,84462.0,84461.0,6.3e-07]
[1742142705712,0.7404954,84462.0,84461.0,6.3e-07]
[1742142706463,0.72193185,84462.0,84461.0,6.3e-07]
[1742142706660,0.71893185,84462.0,84461.0,6.3e-07]
[1742142707065,0.707391,84462.0,84461.0,6.3e-07]
[1742142707271,0.82696603,84462.0,84461.0,6.3e-07]
[1742142707685,0.551631,84462.0,84461.0,6.3e-07]
[1742142707895,0.707391,84462.0,84461.0,6.3e-07]
[1742142708109,0.695552,84462.0,84461.0,0.00017013]
[1742142708313,0.248647,84457.0,84451.0,0.248662]
[1742142708558,0.75172,84464.0,84463.0,0.011839]
[1742142708767,0.15576,84468.0,84461.0,0.236795]
[1742142709158,0.248608,84471.0,84460.0,0.011839]
[1742142709159,0.248608,84471.0,84462.0,0.011839]
[1742142709358,0.76388,84487.0,84451.0,0.23694568]
[1742142709359,0.011837,84480.0,84466.0,0.011839]
[1742142709560,0.011836,84481.0,84469.0,0.011838]
[1742142709766,0.011838,84472.0,84463.0,0.2770413]
[1742142709967,0.011838,84472.0,84467.0,0.236778]
[1742142710115,0.248605,84472.0,84468.0,0.02709011]
[1742142710322,0.236772,84470.0,84468.0,0.02509011]
[1742142710718,0.011838,84469.0,84468.0,0.02509011]
[1742142710922,0.236784,84465.0,84454.0,0.01184]
[1742142711126,0.011839,84463.0,84458.0,0.248641]
[1742142711331,0.248623,84466.0,84458.0,0.248641]
[1742142711537,0.248625,84465.0,84460.0,0.248634]
[1742142711741,0.3,84479.0,84453.0,0.01184]
[1742142711945,0.248633,84462.0,84456.0,0.248647]
[1742142712151,0.011839,84460.0,84454.0,0.25594857]
[1742142712323,0.236803,84459.0,84454.0,0.25594857]
[1742142712529,0.248636,84461.0,84456.0,0.236808]
[1742142712754,0.248636,84461.0,84454.0,0.26778857]
[1742142712755,0.248639,84460.0,84454.0,0.26778857]
[1742142712951,0.248639,84460.0,84455.0,0.02915943]
[1742142713154,0.236769,84471.0,84455.0,0.02915943]
[1742142713403,0.3,84467.0,84462.0,0.248629]
[1742142714003,0.248628,84464.0,84460.0,0.236798]
[1742142714232,0.25534123,84466.0,84460.0,0.248637]
[1742142714409,0.011839,84462.0,84450.0,0.011841]
[1742142714618,0.236814,84455.0,84451.0,0.01187926]
[1742142714944,0.011841,84452.0,84451.0,0.00012368]
[1742142716699,0.25537503,84455.0,84451.0,0.00012368]
[1742142716890,0.01184,84453.0,84448.0,0.248672]
[1742142717029,0.01856103,84455.0,84451.0,0.011841]
[1742142717275,0.01184,84454.0,84448.0,0.248672]
[1742142717476,0.011841,84450.0,84445.0,0.060842]
[1742142717679,0.24867,84450.0,84445.0,0.049]
[1742142717878,0.011841,84452.0,84445.0,0.060842]
[1742142718081,0.01856103,84455.0,84450.0,0.011841]
[1742142718317,0.01856103,84455.0,84451.0,0.2677726]
[1742142718651,0.01856103,84455.0,84451.0,0.0329516]
[1742142718845,0.03040103,84455.0,84451.0,0.0309516]
[1742142719073,0.01184,84453.0,84451.0,0.0309516]
[1742142719276,0.248658,84453.0,84451.0,0.0309516]
[1742142719477,0.011841,84452.0,84451.0,0.0311212]
[1742142719613,0.011841,84452.0,84451.0,0.0001696]
[1742142719823,0.311841,84452.0,84451.0,0.0001696]
[1742142720937,0.311841,84452.0,84451.0,0.0021696]
[1742142721357,0.311841,84452.0,84451.0,0.0001696]
[1742142721561,0.313841,84452.0,84451.0,0.0001696]
[1742142721842,0.43141603,84452.0,84451.0,0.0001696]
[1742142722050,0.311841,84452.0,84451.0,0.0001696]
[1742142722244,0.33140473,84452.0,84451.0,0.0001696]
[1742142722458,0.33040473,84452.0,84451.0,0.0001696]
[1742142723053,0.34259361,84452.0,84451.0,0.0001696]
[1742142723234,0.33040473,84452.0,84451.0,0.0001696]
[1742142724035,0.33140473,84452.0,84451.0,0.0001696]
[1742142724865,0.03040473,84452.0,84451.0,0.0001696]
[1742142725617,0.01856373,84452.0,84451.0,0.0120106]
[1742142725829,0.01856373,84452.0,84451.0,0.03926236]
[1742142728021,0.01856373,84452.0,84451.0,0.04026236]
[1742142728230,0.01856373,84452.0,84451.0,0.03926236]
[1742142728430,0.0003392,84462.0,84461.0,0.011839]
[1742142728635,0.00046254,84462.0,84461.0,0.02625365]
[1742142728858,0.00046254,84462.0,84461.0,0.03709265]
[1742142729302,0.00046254,84462.0,84461.0,0.11249265]
[1742142729541,0.00046254,84462.0,84461.0,0.16317644]
[1742142729737,0.00046254,84462.0,84461.0,0.17771729]
[1742142730401,0.00046254,84462.0,84461.0,0.1765335]
[1742142730607,0.00046254,84462.0,84461.0,0.1755335]
[1742142731226,0.00146254,84462.0,84461.0,0.19039155]
[1742142731432,0.00146254,84462.0,84461.0,0.18920791]
[1742142731639,0.248517,84501.0,84494.0,0.011835]
[1742142731848,0.248517,84501.0,84497.0,0.011834]
[1742142731849,0.01855638,84501.0,84497.0,0.011834]
[1742142732063,0.01855638,84501.0,84498.0,0.236691]
[1742142732268,0.01855638,84501.0,84499.0,0.24852]
[1742142732474,0.01855638,84501.0,84499.0,0.02425365]
[1742142733191,0.01855638,84501.0,84499.0,0.27277465]
[1742142733394,0.01855638,84501.0,84500.0,0.011834]
[1742142735326,0.01855638,84501.0,84500.0,0.014834]
[1742142735437,0.01855638,84501.0,84497.0,0.011834]
[1742142735641,0.01855638,84501.0,84498.0,0.248525]
[1742142735844,0.01855638,84501.0,84500.0,0.236686]
[1742142736085,0.01855638,84501.0,84500.0,0.24852]
[1742142736484,0.248486,84512.0,84500.0,0.24852]
[1742142736485,0.00041244,84510.0,84509.0,0.248494]
[1742142737651,0.00041244,84510.0,84509.0,0.250494]
[1742142738048,0.00041244,84510.0,84509.0,0.002]
[1742142738261,0.24890244,84510.0,84509.0,0.002]
[1742142738479,0.54890244,84510.0,84509.0,0.002]
[1742142739857,0.98305485,84510.0,84509.0,0.002]
[1742142740054,1.10262988,84510.0,84509.0,0.002]
[1742142740483,0.98305485,84510.0,84509.0,0.002]
[1742142740680,0.248522,84500.0,84493.0,0.236703]
[1742142740888,0.236702,84495.0,84490.0,0.011835]
[1742142741123,0.011835,84494.0,84485.0,0.236725]
[1742142741256,0.248554,84489.0,84482.0,0.24857]
[1742142741497,0.011835,84491.0,84486.0,0.236725]
[1742142741664,0.236711,84492.0,84487.0,0.23672]
[1742142741865,0.236711,84492.0,84487.0,0.248556]
[1742142742117,0.011835,84490.0,84485.0,0.011836]
[1742142742316,0.011835,84490.0,84485.0,0.248562]
[1742142742525,0.011835,84489.0,84482.0,0.236736]
[1742142742735,0.011837,84479.0,84475.0,0.236756]
[1742142742994,0.248595,84475.0,84468.0,0.011838]
[1742142743177,0.011839,84463.0,84462.0,0.0001695]
[1742142743708,0.24862,84466.0,84462.0,0.0001695]
[1742142743917,0.011839,84463.0,84462.0,0.0001695]
[1742142744985,0.01855995,84463.0,84462.0,0.0031695]
[1742142745187,0.01855995,84463.0,84462.0,0.0120085]
[1742142745389,0.01855995,84463.0,84462.0,0.09189237]
[1742142745537,0.01855995,84463.0,84462.0,0.0937085]
[1742142746116,0.01855995,84463.0,84462.0,0.0031695]
[1742142746319,0.26718895,84463.0,84462.0,0.0031695]
[1742142746863,0.248629,84463.0,84462.0,0.0031695]
[1742142747187,0.236784,84465.0,84462.0,0.02535115]
[1742142747387,0.236784,84465.0,84462.0,0.0061695]
[1742142747583,0.248623,84465.0,84462.0,0.0001695]
[1742142747965,0.248623,84465.0,84462.0,0.0021695]
[1742142748147,0.248623,84465.0,84462.0,0.0001695]
[1742142748347,0.248628,84464.0,84462.0,0.0001695]
[1742142748570,0.248628,84464.0,84462.0,0.0021695]
[1742142748827,0.011838,84469.0,84463.0,0.236787]
[1742142749085,0.236751,84477.0,84469.0,0.011838]
[1742142749086,0.236762,84473.0,84469.0,0.011838]
[1742142749262,0.236767,84471.0,84467.0,0.011838]
[1742142749478,0.011838,84472.0,84467.0,0.011838]
[1742142749690,0.011837,84479.0,84467.0,0.02626405]
[1742142749895,0.01855801,84471.0,84467.0,0.02626405]
[1742142750096,0.24861,84470.0,84467.0,0.02626405]
[1742142750505,0.236776,84468.0,84462.0,0.0021695]
[1742142750713,0.011838,84469.0,84463.0,0.236787]
[1742142750714,0.248613,84469.0,84463.0,0.236787]
[1742142750868,0.011839,84463.0,84462.0,0.0001695]
[1742142751648,0.011838,84467.0,84462.0,0.2487985]
[1742142751853,0.473388,84498.0,84462.0,0.0160085]
[1742142752060,0.248595,84475.0,84470.0,0.011838]
[1742142752270,0.236744,84480.0,84470.0,0.0272285]
[1742142752484,0.236744,84480.0,84470.0,0.0390665]
[1742142752685,0.236747,84479.0,84470.0,0.0390665]
[1742142752920,0.03039601,84471.0,84470.0,0.0272285]
[1742142753129,0.011838,84469.0,84462.0,0.0160085]
[1742142753335,0.011838,84469.0,84463.0,0.011839]
[1742142753554,0.248622,84466.0,84462.0,0.0061695]
[1742142753785,0.011839,84463.0,84462.0,0.0001695]
[1742142754732,0.011839,84463.0,84462.0,0.0041695]
[1742142754953,0.011839,84463.0,84462.0,0.0001695]
[1742142755553,0.011839,84463.0,84462.0,0.0031695]
[1742142756597,0.3876094,84463.0,84462.0,5e-07]
[1742142756797,0.311839,84463.0,84462.0,5e-07]
[1742142757048,0.727439,84463.0,84462.0,5e-07]
[1742142757226,0.548661,84452.0,84451.0,0.0001696]
[1742142757436,0.548661,84452.0,84451.0,9.4e-07]
[1742142757437,0.629661,84452.0,84451.0,9.4e-07]
[1742142757638,0.248682,84445.0,84444.0,4.19517064]
[1742142758667,0.548682,84445.0,84444.0,2.94385664]
[1742142758790,0.965282,84445.0,84444.0,2.94385664]
[1742142759502,0.97982285,84445.0,84444.0,2.94385664]
[1742142759711,0.98482285,84445.0,84444.0,2.94385664]
[1742142759913,1.10195685,84445.0,84444.0,2.94385664]
[1742142760294,1.11952421,84445.0,84444.0,2.94385664]
[1742142760537,1.00239021,84445.0,84444.0,2.94385664]
[1742142760769,1.01146854,84445.0,84444.0,2.94385664]
[1742142760944,1.00946854,84445.0,84444.0,2.94385664]
[1742142761317,1.01246854,84445.0,84444.0,2.94385664]
[1742142761521,0.99792769,84445.0,84444.0,2.94385664]
[1742142762677,1.01746854,84445.0,84444.0,2.38140764]
[1742142763421,1.01446854,84445.0,84444.0,2.38140764]
[1742142763801,1.01746854,84445.0,84444.0,2.38140764]
[1742142764006,1.01446854,84445.0,84444.0,2.38140764]
[1742142764247,1.13704357,84445.0,84444.0,2.38140764]
[1742142764657,1.01746854,84445.0,84444.0,2.38140764]
[1742142764863,1.56407534,84445.0,84444.0,0.87886864]
[1742142765068,1.56407534,84445.0,84444.0,0.04222364]
[1742142765494,1.54133534,84445.0,84444.0,0.04222364]
[1742142765709,0.55372,84432.0,84429.0,0.000339]
[1742142765920,2.24014885,84432.0,84429.0,0.000339]
[1742142766123,0.011849,84395.0,84391.0,0.0008]
[1742142766325,0.011848,84399.0,84391.0,0.0008]
[1742142766326,0.3,84392.0,84391.0,0.0008]
[1742142766528,0.548838,84392.0,84391.0,0.0008]
[1742142766737,0.964438,84392.0,84391.0,0.0008]
[1742142767204,1.21354885,84392.0,84391.0,0.0008]
[1742142767409,1.18974089,84392.0,84391.0,0.0008]
[1742142768198,1.19174089,84392.0,84391.0,0.0008]
[1742142768415,0.98106169,84392.0,84391.0,0.0008]
[1742142768861,0.97906169,84392.0,84391.0,0.0008]
[1742142769066,1.0429423,84392.0,84391.0,0.0008]
[1742142769180,1.05506586,84392.0,84391.0,0.0008]
[1742142769400,2.08809466,84392.0,84391.0,1e-06]
[1742142769601,2.15498086,84392.0,84391.0,1e-06]
[1742142769822,1.20774616,84392.0,84391.0,1e-06]
[1742142770027,1.31343755,84392.0,84391.0,1e-06]
[1742142770231,1.36343735,84392.0,84391.0,1e-06]
[1742142770437,1.43032355,84392.0,84391.0,1e-06]
[1742142771239,0.41552,84380.0,84378.0,0.0127455]
[1742142771458,0.3668508,84377.0,84376.0,8.95e-05]
[1742142771842,1.57396165,84377.0,84376.0,8.95e-05]
[1742142772031,0.3,84354.0,84335.0,0.2476639]
[1742142772262,0.3,84354.0,84333.0,0.237153]
[1742142772263,0.3,84352.0,84333.0,0.237153]
[1742142772471,0.53050095,84350.0,84331.0,0.08]
[1742142772684,0.011857,84335.0,84321.0,0.08]
[1742142772887,0.3,84349.0,84328.0,0.237169]
[1742142773096,0.3,84349.0,84332.0,0.011857]
[1742142773303,0.3,84349.0,84342.0,0.011856]
[1742142773505,0.01858715,84344.0,84343.0,0.0260849]
[1742142773708,0.01858715,84344.0,84335.0,0.237148]
[1742142773920,0.01858715,84344.0,84338.0,0.237141]
[1742142774123,0.01858715,84344.0,84339.0,0.011856]
[1742142774367,0.01858715,84344.0,84336.0,0.011857]
[1742142774567,0.01858715,84344.0,84334.0,0.011857]
[1742142774765,0.01858715,84344.0,84335.0,0.2632347]
[1742142774946,0.01858715,84344.0,84338.0,0.011857]
[1742142775146,0.01858715,84344.0,84337.0,0.237143]
[1742142775358,0.01858715,84344.0,84337.0,0.249]
[1742142775564,0.01858715,84344.0,84341.0,0.237131]
[1742142775704,0.01858715,84344.0,84342.0,0.02541871]
[1742142776115,0.01858715,84344.0,84333.0,0.237154]
[1742142776314,0.01858715,84344.0,84334.0,0.011857]
[1742142776519,0.01858715,84344.0,84331.0,0.011858]
[1742142776520,0.01858715,84344.0,84329.0,0.011858]
[1742142776721,0.01858715,84344.0,84337.0,0.237143]
[1742142776919,0.3,84346.0,84334.0,0.011857]
[1742142777345,0.3,84346.0,84338.0,0.011857]
[1742142777730,0.002,84344.0,84338.0,0.011857]
[1742142777928,0.3,84350.0,84339.0,0.248991]
[1742142778141,0.011857,84332.0,84313.0,1.51186]
[1742142778348,0.237152,84334.0,84326.0,0.00041252]
[1742142778594,0.3,84327.0,84326.0,0.00041252]
[1742142778801,0.3,84330.0,84326.0,0.00041252]
[1742142779501,0.249029,84327.0,84326.0,0.00041252]
[1742142779734,0.36860403,84327.0,84326.0,0.00041252]
[1742142779933,0.249029,84327.0,84326.0,0.00041252]
[1742142780344,0.25576214,84327.0,84326.0,0.00041252]
[1742142780550,0.26762014,84327.0,84326.0,0.00041252]
[1742142780760,0.01859114,84327.0,84326.0,0.00041252]
[1742142781386,0.02059114,84327.0,84326.0,0.00041252]
[1742142781589,0.10724595,84327.0,84326.0,0.00041252]
[1742142781796,0.10524595,84327.0,84326.0,0.00041252]
[1742142782000,0.01859114,84327.0,84326.0,0.00041252]
[1742142782213,0.47395114,84327.0,84326.0,0.01227052]
[1742142782416,0.01859114,84327.0,84326.0,0.01227052]
[1742142782624,0.01859114,84327.0,84326.0,0.14147052]
[1742142784105,0.01859114,84327.0,84326.0,0.01227052]
[1742142784313,0.01859114,84327.0,84326.0,0.24944452]
[1742142784532,0.01859114,84327.0,84326.0,0.00041252]
[1742142784955,0.01959114,84327.0,84326.0,0.01227052]
[1742142785170,0.01959114,84327.0,84326.0,0.00041252]
[1742142785171,0.43411114,84327.0,84326.0,0.00041252]
[1742142785377,0.58943114,84327.0,84326.0,0.00041252]
[1742142785600,0.73411114,84327.0,84326.0,0.00041252]
[1742142786018,1.05655125,84327.0,84326.0,0.00041252]
[1742142786447,1.0710921,84327.0,84326.0,0.00041252]
[1742142786685,0.4275326,84361.0,84343.0,0.011856]
[1742142786937,0.011857,84333.0,84326.0,0.00041252]
[1742142787157,0.311858,84327.0,84326.0,0.00041252]
[1742142787369,0.7156,84327.0,84326.0,0.00041252]
[1742142787823,0.7186,84327.0,84326.0,0.00041252]
[1742142788027,0.3,84342.0,84330.0,0.237163]
[1742142788248,0.3,84342.0,84328.0,0.011858]
[1742142788249,0.3,84342.0,84331.0,0.02612915]
[1742142788461,0.15532,84347.0,84331.0,0.02612915]
[1742142788462,0.4206,84353.0,84341.0,0.235132]
[1742142788674,0.4206,84353.0,84346.0,0.237115]
[1742142788885,0.4206,84353.0,84331.0,0.02612915]
[1742142788886,0.005,84353.0,84331.0,0.02612915]
[1742142789067,0.3,84347.0,84331.0,0.02612915]
[1742142789304,0.3,84347.0,84332.0,0.249012]
[1742142789527,0.3,84347.0,84345.0,0.23712]
[1742142789947,0.3,84347.0,84334.0,0.011857]
[1742142790165,0.0118766,84361.0,84341.0,0.23713]
[1742142790166,0.3,84350.0,84341.0,0.23713]
[1742142790378,0.3,84350.0,84346.0,0.011855]
[1742142790851,0.3,84350.0,84349.0,0.011855]
[1742142791063,0.3,84361.0,84355.0,0.011854]
[1742142791319,0.15532,84362.0,84350.0,0.237107]
[1742142791498,0.15532,84362.0,84347.0,0.248968]
[1742142791499,0.167173,84362.0,84347.0,0.248968]
[1742142791703,0.167173,84362.0,84341.0,0.001]
[1742142791704,0.248952,84354.0,84341.0,0.001]
[1742142791924,0.248952,84354.0,84335.0,0.237147]
[1742142791925,0.011855,84351.0,84346.0,0.003]
[1742142792143,0.011854,84354.0,84346.0,0.003]
[1742142792352,0.3,84360.0,84349.0,0.002]
[1742142792564,0.30730095,84380.0,84345.0,0.011856]
[1742142792565,0.75308,84365.0,84359.0,0.011854]
[1742142792771,0.75308,84365.0,84356.0,0.248943]
[1742142793190,0.237076,84361.0,84346.0,0.0488]
[1742142793539,0.237076,84361.0,84326.0,0.0001698]
[1742142793540,0.011854,84358.0,84342.0,0.011856]
[1742142793755,0.3,84360.0,84342.0,0.011856]
[1742142793962,0.3,84360.0,84343.0,0.011856]
[1742142794136,0.311853,84360.0,84346.0,0.011855]
[1742142794368,0.311853,84360.0,84345.0,0.011856]
[1742142794624,0.3,84360.0,84356.0,0.237089]
[1742142794844,0.3,84360.0,84351.0,0.011855]
[1742142795046,0.3,84364.0,84350.0,0.237105]
[1742142795248,0.001,84360.0,84350.0,0.24896]
[1742142795452,0.3,84364.0,84356.0,0.011854]
[1742142795667,0.3,84364.0,84357.0,0.248941]
[1742142795880,0.237084,84358.0,84350.0,0.02423541]
[1742142796053,0.011854,84359.0,84330.0,0.0488]
[1742142796255,0.3,84364.0,84330.0,0.0488]
[1742142796256,0.011855,84347.0,84336.0,0.01296125]
[1742142796461,0.3,84349.0,84336.0,0.01296125]
[1742142796690,0.3,84349.0,84339.0,0.237136]
[1742142797023,0.3,84349.0,84340.0,0.248989]
[1742142797252,0.3,84361.0,84350.0,0.011855]
[1742142797474,0.3,84362.0,84352.0,0.248954]
[1742142797676,0.3,84362.0,84361.0,0.248929]
[1742142797919,0.3,84362.0,84351.0,0.0260817]
[1742142798122,0.3,84362.0,84330.0,0.0488]
[1742142798123,0.3,84362.0,84338.0,0.011857]
[1742142798325,0.3,84362.0,84350.0,0.011855]
[1742142798500,0.3,84364.0,84361.0,0.011853]
[1742142798718,0.3,84364.0,84358.0,0.011854]
[1742142798719,0.75308,84365.0,84358.0,0.011854]
[1742142798904,0.3,84370.0,84356.0,0.011854]
[1742142799121,0.3,84370.0,84363.0,0.248921]
[1742142799283,0.3,84370.0,84361.0,0.00041252]
[1742142799896,0.311852,84370.0,84361.0,0.00041252]
[1742142800120,0.3,84370.0,84361.0,0.00041252]
[1742142800326,0.3,84365.0,84361.0,0.00041252]
[1742142801465,0.3,84370.0,84361.0,0.00041252]
[1742142801671,0.011852,84367.0,84361.0,0.00041252]
[1742142801866,0.3,84368.0,84361.0,0.00041252]
[1742142802066,0.011852,84368.0,84361.0,0.00041252]
[1742142802272,0.011852,84367.0,84361.0,0.00141252]
[1742142802659,0.011852,84367.0,84361.0,0.00041252]
[1742142802855,0.011853,84363.0,84361.0,0.00041252]
[1742142803065,0.311853,84362.0,84361.0,0.00041252]
[1742142804492,0.311853,84362.0,84361.0,0.00141252]
[1742142804865,0.311853,84362.0,84361.0,0.00041252]
[1742142805069,0.33043717,84362.0,84361.0,0.00141252]
[1742142805591,0.31858417,84362.0,84361.0,0.00341252]
[1742142805757,0.33043717,84362.0,84361.0,0.00341252]
[1742142806113,0.31858417,84362.0,84361.0,0.00041252]
[1742142806320,0.3,84366.0,84361.0,0.00141252]
[1742142806522,0.3,84366.0,84361.0,0.00341252]
[1742142806678,0.311853,84366.0,84361.0,0.00341252]
[1742142806886,0.011853,84364.0,84361.0,0.00341252]
[1742142807082,0.237073,84362.0,84361.0,0.00341252]
[1742142807358,0.97906685,84362.0,84361.0,0.00341252]
[1742142807557,1.67764685,84362.0,84361.0,0.00241252]
[1742142807765,1.57370485,84362.0,84361.0,0.00241252]
[1742142810457,2.1408345,84342.0,84341.0,8e-07]
[1742142810655,0.56356985,84327.0,84326.0,0.0001698]
[1742142810862,1.29178785,84327.0,84326.0,0.0001698]
[1742142811066,1.71238705,84327.0,84326.0,0.0001698]
[1742142811396,1.71238705,84327.0,84326.0,8e-07]
[1742142811596,1.03416885,84327.0,84326.0,8e-07]
[1742142811801,0.56361485,84312.0,84311.0,0.0008]
[1742142812076,3.50409875,84312.0,84311.0,0.0008]
[1742142812298,0.56866785,84294.0,84293.0,0.0127455]
[1742142812468,1.88746705,84294.0,84293.0,0.0127455]
[1742142813046,1.89908993,84294.0,84293.0,0.0127455]
[1742142813490,1.9176911,84294.0,84293.0,0.0127455]
[1742142813752,1.76294209,84294.0,84293.0,0.0127455]
[1742142813953,1.91810209,84294.0,84293.0,0.0127455]